bitfinex-derivatives/quotes_SOLF0:USTF0_20250818
["timestamp","ask_amount","ask_price","bid_price","bid_amount"]
[1755485885156,2.36,184.02,183.94,2.96]
[1755485885454,2.36,184.02,183.96,2.96]
[1755485885948,25.73262501,184.11,183.96,2.96]
[1755485886157,2.36,184.09,183.97,2.96]
[1755485886454,16.3,184.11,183.97,2.96]
[1755485886455,2.36,184.07,183.97,2.96]
[1755485886754,2.36,184.04,183.99,2.96]
[1755485887052,2.36,184.05,183.99,2.96]
[1755485887249,5.431,184.02,183.89,9.43262501]
[1755485887456,2.36,184.05,183.94,2.96]
[1755485887854,2.36,184.03,183.95,2.96]
[1755485888148,2.36,184.01,183.95,2.96]
[1755485888951,3.8890256,184.0,183.95,2.96]
[1755485889159,2.36,183.99,183.94,2.96]
[1755485889366,2.36,184.05,183.93,2.96]
[1755485889561,5.24723327,184.04,183.93,2.96]
[1755485889750,5.4329,183.96,183.93,2.96]
[1755485890057,2.36,183.97,183.95,2.96]
[1755485890451,5.4326,183.96,183.95,2.96]
[1755485893858,5.4324,183.97,183.93,5.4335]
[1755485894060,5.4324,183.97,183.96,2.96]
[1755485894660,5.8308149,184.04,183.94,2.96]
[1755485894856,2.37,184.0,183.93,2.96]
[1755485895058,2.37,183.98,183.93,2.96]
[1755485896058,3.89343424,183.97,183.93,2.96]
[1755485896257,5.4329,183.95,183.94,2.96]
[1755485896963,5.4334,183.94,183.9,5.4343]
[1755485897263,5.4334,183.94,183.93,2.96]
[1755485897857,5.8308149,183.98,183.83,5.8308149]
[1755485898065,2.37,183.96,183.84,2.96]
[1755485898265,2.37,183.94,183.84,2.96]
[1755485898561,5.8308149,183.95,183.87,2.96]
[1755485898760,2.37,183.93,183.87,2.96]
[1755485898955,5.4348,183.89,183.88,2.96]
[1755485899165,2.37,183.93,183.82,2.96]
[1755485899761,5.4346,183.9,183.87,2.96]
[1755485900363,5.4342,183.91,183.88,5.435]
[1755485900764,2.37,183.94,183.83,5.8308149]
[1755485900765,2.37,183.94,183.89,2.96]
[1755485900962,5.4335,183.94,183.9,5.4342]
[1755485901162,2.37,183.97,183.91,2.96]
[1755485901361,2.37,183.95,183.84,2.96]
[1755485901666,5.4336,183.93,183.91,2.96]
[1755485901869,2.37,183.95,183.91,2.96]
[1755485902066,16.3,184.04,183.92,5.4338]
[1755485902067,2.37,183.97,183.92,5.4338]
[1755485902266,2.37,183.97,183.95,2.95]
[1755485902464,3.88836116,183.96,183.89,2.95]
[1755485902663,27.1626,184.01,183.87,2.95]
[1755485902664,5.4351,183.88,183.87,2.95]
[1755485902868,5.4351,183.88,183.81,365.16]
[1755485902869,2.37,183.92,183.82,2.95]
[1755485903264,2.37,183.92,183.81,365.16]
[1755485903265,2.37,183.92,183.84,2.95]
[1755485903466,2.37,183.9,183.84,2.95]
[1755485903865,5.4358,183.86,183.85,2.95]
[1755485904462,9.45310775,183.95,183.85,2.95]
[1755485904463,2.37,183.94,183.85,2.95]
[1755485904764,2.37,183.92,183.85,2.95]
[1755485904960,2.37,183.98,183.85,2.95]
[1755485905165,2.37,183.96,183.85,2.95]
[1755485905466,2.37,183.94,183.85,2.95]
[1755485905770,2.37,183.92,183.86,2.95]
[1755485906670,2.37,183.95,183.86,2.95]
[1755485907070,7.8032,183.95,183.86,2.95]
[1755485907270,2.37,183.98,183.86,2.95]
[1755485908264,5.4334,183.94,183.9,2.95]
[1755485908870,5.4334,183.94,183.91,2.95]
[1755485909464,5.433,183.95,183.92,2.95]
[1755485909669,5.433,183.95,183.91,5.434]
[1755485909867,5.433,183.95,183.93,2.95]
[1755485910073,7.803,183.95,183.93,2.95]
[1755485910270,2.37,183.94,183.91,2.95]
[1755485910464,2.37,183.94,183.92,2.95]
[1755485910666,2.37,184.02,183.9,2.95]
[1755485910872,2.37,184.0,183.9,2.95]
[1755485911174,9.45310775,184.03,183.92,2.95]
[1755485911175,2.37,183.98,183.92,2.95]
[1755485911566,7.8028,183.96,183.92,2.95]
[1755485911962,5.433,183.95,183.92,2.95]
[1755485912171,5.433,183.95,183.8,18.56315309]
[1755485912367,2.37,184.02,183.94,2.95]
[1755485912573,2.37,184.0,183.94,2.95]
[1755485912769,3.88112176,183.99,183.94,2.95]
[1755485913075,2.37,183.98,183.94,2.95]
[1755485913266,9.45310775,184.05,183.94,2.95]
[1755485913573,2.37,183.96,183.94,2.95]
[1755485914072,7.8026,183.96,183.95,2.95]
[1755485914270,5.4326,183.96,183.95,2.95]
[1755485916074,5.4326,183.96,183.93,2.95]
[1755485916075,5.4334,183.94,183.93,2.95]
[1755485916275,10.8615,184.03,183.83,2.95]
[1755485916577,5.4343,183.91,183.87,5.4351]
[1755485916764,25.75310775,184.0,183.79,153.48]
[1755485916970,2.37,183.93,183.85,2.95]
[1755485917173,5.4352,183.88,183.85,2.95]
[1755485917372,2.37,183.93,183.85,2.95]
[1755485917663,5.4356,183.86,183.85,2.95]
[1755485918869,5.4361,183.85,183.79,153.48]
[1755485919071,5.4361,183.85,183.84,2.95]
[1755485919275,5.4357,183.86,183.79,153.48]
[1755485919577,5.4357,183.86,183.81,5.4369]
[1755485919770,5.436,183.85,183.82,2.95]
[1755485920274,2.37,183.94,183.83,2.95]
[1755485920477,5.4358,183.86,183.83,2.95]
[1755485921073,5.4359,183.85,183.83,2.95]
[1755485921281,5.4359,183.85,183.84,2.95]
[1755485921874,5.4355,183.87,183.86,2.95]
[1755485922373,2.37,183.9,183.87,2.95]
[1755485922579,2.37,183.9,183.88,2.95]
[1755485923077,5.4347,183.89,183.88,2.95]
[1755485923276,7.8047,183.89,183.88,2.95]
[1755485923874,5.4347,183.89,183.88,2.95]
[1755485924773,181.05590682,183.94,183.79,153.48]
[1755485924978,183.42590682,183.94,183.8,2.95]
[1755485925179,5.4336,183.93,183.8,2.95]
[1755485925480,2.37,183.97,183.82,2.95]
[1755485925869,5.4327,183.96,183.93,2.95]
[1755485926679,5.4324,183.97,183.93,8.3835]
[1755485926874,5.4324,183.97,183.94,2.95]
[1755485927074,2.37,183.99,183.88,2.95]
[1755485927479,5.4326,183.96,183.93,2.95]
[1755485927981,2.37,183.99,183.93,2.95]
[1755485928177,3.87529271,183.98,183.91,2.95]
[1755485928380,2.37,183.97,183.91,2.95]
[1755485928678,5.4336,183.93,183.92,2.95]
[1755485928872,2.37,183.93,183.9,2.95]
[1755485929075,25.74571026,184.02,183.81,153.12]
[1755485929376,524.45437764,184.03,183.85,5.4357]
[1755485929377,2.37,183.97,183.85,5.4357]
[1755485929586,2.37,183.95,183.86,2.95]
[1755485930972,2.37,183.95,183.74,9.11004534]
[1755485930973,2.37,183.93,183.74,9.11004534]
[1755485931179,5.437,183.82,183.77,5.4381]
[1755485931477,5.437,183.82,183.78,2.95]
[1755485931680,2.37,183.84,183.76,5.4385]
[1755485931874,2.37,183.84,183.69,0.94686148]
[1755485931875,2.37,183.84,183.79,2.95]
[1755485932083,2.37,183.84,183.77,2.97]
[1755485932275,9.44571026,183.87,183.69,0.94686148]
[1755485932276,5.4379,183.79,183.78,2.97]
[1755485932476,2.37,183.81,183.79,2.97]
[1755485933485,2.37,183.83,183.76,2.97]
[1755485934083,2.37,183.85,183.78,2.97]
[1755485934386,2.37,183.88,183.78,2.97]
[1755485934584,2.37,183.88,183.8,2.97]
[1755485934978,5.4358,183.86,183.82,5.4365]
[1755485935183,176.34058753,183.91,183.71,9.44571026]
[1755485935184,2.37,183.9,183.71,9.44571026]
[1755485935490,2.37,183.9,183.72,2.97]
[1755485935683,2.37,183.88,183.71,9.44571026]
[1755485935985,2.37,183.86,183.72,2.97]
[1755485936290,5.4368,183.82,183.69,153.82686148]
[1755485936489,2.37,183.85,183.7,2.97]
[1755485936783,2.37,183.85,183.69,153.82686148]
[1755485936784,5.4367,183.83,183.78,5.4377]
[1755485936984,5.4367,183.83,183.79,2.97]
[1755485937290,176.34058753,183.91,183.76,2.97]
[1755485937291,2.37,183.9,183.76,2.97]
[1755485937489,2.37,183.88,183.77,5.4381]
[1755485937689,2.37,183.86,183.78,2.97]
[1755485938284,5.4368,183.82,183.78,5.4377]
[1755485938589,5.4364,183.84,183.82,2.97]
[1755485938789,2.37,183.85,183.82,2.97]
[1755485939185,5.4362,183.84,183.8,2.97]
[1755485939379,2.37,183.85,183.79,5.4374]
[1755485939577,176.34058753,183.91,183.81,2.97]
[1755485939779,2.37,183.84,183.81,2.97]
[1755485940392,176.34058753,183.91,183.81,2.97]
[1755485940588,2.37,183.86,183.83,2.97]
[1755485940794,178.71058753,183.91,183.85,2.97]
[1755485940997,176.34058753,183.91,183.85,2.97]
[1755485941196,176.34058753,183.91,183.87,5.435]
[1755485941392,176.34058753,183.91,183.85,2.97]
[1755485942600,7.803,183.95,183.89,2.97]
[1755485942899,2.37,183.99,183.89,2.97]
[1755485943601,5.432,183.98,183.89,2.97]
[1755485943902,2.37,183.99,183.89,2.97]
[1755485944094,5.4321,183.98,183.89,2.97]
[1755485944294,5.4321,183.98,183.92,5.4335]
[1755485944497,2.37,183.99,183.93,2.97]
[1755485944695,5.95437764,184.06,183.82,62.0]
[1755485944893,5.95437764,184.06,183.77,365.38]
[1755485944894,2.37,184.02,183.89,2.97]
[1755485945093,2.37,184.0,183.89,2.97]
[1755485945303,2.37,183.98,183.89,2.97]
[1755485945605,2.37,183.96,183.89,2.97]
[1755485945791,5.4332,183.94,183.89,2.97]
[1755485945992,2.37,183.96,183.89,2.97]
[1755485946902,5.4344,183.9,183.89,2.97]
[1755485949301,2.37,183.93,183.8,2.97]
[1755485949501,2.37,183.95,183.8,2.97]
[1755485949802,5.4335,183.93,183.89,5.4346]
[1755485950003,2.37,183.97,183.9,2.97]
[1755485950499,2.37,183.97,183.91,2.97]
[1755485951001,5.4335,183.93,183.91,2.97]
[1755485951204,5.4335,183.93,183.92,2.97]
[1755485951397,15.4000879,184.03,183.9,2.97]
[1755485951599,5.4341,183.92,183.9,2.97]
[1755485951797,5.4341,183.92,183.88,2.97]
[1755485951996,5.4333,183.94,183.89,5.4346]
[1755485952204,5.4333,183.94,183.9,2.97]
[1755485952598,5.4333,183.94,183.91,2.97]
[1755485952904,5.4333,183.94,183.92,2.97]
[1755485953114,5.4333,183.94,183.89,5.4346]
[1755485953401,5.4333,183.94,183.93,2.97]
[1755485953996,5.4337,183.93,183.91,2.97]
[1755485954196,5.4337,183.93,183.92,2.97]
[1755485954500,5.4338,183.93,183.89,2.97]
[1755485954799,2.37,184.02,183.89,2.97]
[1755485955003,9.44571026,184.03,183.89,2.97]
[1755485955004,5.434,183.92,183.89,2.97]
[1755485955207,2.37,183.94,183.88,2.97]
[1755485955402,2.37,183.96,183.88,2.97]
[1755485955808,9.44571026,184.03,183.88,2.97]
[1755485956010,2.37,183.98,183.88,2.97]
[1755485956209,5.4332,183.95,183.9,5.4343]
[1755485956403,5.4332,183.95,183.91,2.97]
[1755485957002,5.4332,183.95,183.92,2.97]
[1755485957300,5.4332,183.95,183.94,2.97]
[1755485957507,5.4327,183.96,183.83,9.44571026]
[1755485957704,2.37,183.98,183.84,2.97]
[1755485958100,2.37,183.98,183.92,2.97]
[1755485959007,2.37,184.0,183.94,2.97]
[1755485959606,5.4322,183.98,183.94,2.97]
[1755485959909,5.4322,183.98,183.96,2.97]
[1755485960104,5.4322,183.98,183.93,5.4334]
[1755485960105,5.4322,183.98,183.97,2.97]
[1755485960308,5.4317,184.0,183.83,161.52571026]
[1755485960512,2.37,184.03,183.88,2.97]
[1755485960707,2.37,184.03,183.97,5.4321]
[1755485960909,2.37,184.07,183.98,2.97]
[1755485961214,2.37,184.05,183.98,2.97]
[1755485962302,5.4308,184.03,183.99,5.4317]
[1755485962514,7.8008,184.03,184.01,3.0]
[1755485962812,5.4303,184.04,183.99,5.4317]
[1755485963010,7.8003,184.04,184.02,3.0]
[1755485963711,7.8003,184.04,183.91,9.44571026]
[1755485963712,2.37,184.09,184.0,3.0]
[1755485963907,6.30045993,184.08,184.0,3.0]
[1755485964116,2.37,184.06,184.0,3.0]
[1755485965205,5.4305,184.04,184.0,3.0]
[1755485965405,2.37,184.06,183.91,9.44571026]
[1755485965602,2.37,184.12,184.0,3.0]
[1755485965806,5.4296,184.07,184.02,5.4307]
[1755485966002,2.37,184.1,184.03,3.0]
[1755485966211,6.29912007,184.09,184.03,3.0]
[1755485966514,5.4296,184.07,184.03,3.0]
[1755485966718,2.37,184.09,184.03,3.0]
[1755485966906,3.92760796,184.08,184.03,3.0]
[1755485967107,3.92760796,184.07,184.03,3.0]
[1755485967311,2.37,184.09,184.03,3.0]
[1755485967611,3.92679698,184.08,184.03,3.0]
[1755485967816,2.37,184.11,184.03,3.0]
[1755485968019,3.92704752,184.1,184.03,3.0]
[1755485968215,3.92704752,184.09,184.03,3.0]
[1755485968422,2.37,184.14,184.03,3.0]
[1755485968711,6.2963553,184.13,184.03,3.0]
[1755485968912,6.2963553,184.12,184.03,3.0]
[1755485969218,6.2963553,184.11,184.03,3.0]
[1755485969420,3.9263553,184.1,184.03,3.0]
[1755485969716,3.9263553,184.09,184.03,3.0]
[1755485969915,2.37,184.11,184.03,3.0]
[1755485970124,9.35595293,184.1,184.06,3.0]
[1755485970312,3.92735293,184.09,184.06,3.0]
[1755485970612,5.4286,184.1,184.06,3.0]
[1755485970813,9.35584977,184.09,184.04,3.0]
[1755485971015,5.4288,184.09,184.04,3.0]
[1755485971613,2.37,184.15,183.96,3.0]
[1755485971811,2.37,184.13,183.96,3.0]
[1755485972316,2.37,184.08,184.03,3.0]
[1755485973006,9.44571026,184.16,184.03,3.0]
[1755485973007,2.37,184.15,184.03,3.0]
[1755485973211,2.37,184.13,184.04,3.0]
[1755485973613,5.4296,184.07,184.04,3.0]
[1755485973821,2.37,184.08,183.94,3.0]
[1755485974215,5.4308,184.03,183.99,3.0]
[1755485974416,9.44571026,184.12,183.93,3.0]
[1755485974417,2.37,184.11,183.93,3.0]
[1755485974610,2.37,184.09,183.98,3.0]
[1755485974808,3.96791909,184.08,183.98,3.0]
[1755485975015,2.37,184.07,183.98,3.0]
[1755485976321,3.96961898,184.06,183.98,3.0]
[1755485976511,2.37,184.07,183.98,3.0]
[1755485976711,2.37,184.05,183.98,3.0]
[1755485977624,5.4311,184.02,183.98,3.0]
[1755485977926,2.37,184.05,183.98,3.0]
[1755485978319,5.4303,184.04,183.99,5.4315]
[1755485978517,2.37,184.07,183.98,3.0]
[1755485978923,5.4302,184.05,184.01,5.431]
[1755485979122,7.8002,184.05,184.01,5.431]
[1755485979317,5.4302,184.05,184.04,3.0]
[1755485979518,5.4297,184.06,184.05,3.0]
[1755485979715,2.37,184.08,184.06,3.0]
[1755485980020,20.30041026,184.15,183.93,9.44571026]
[1755485980021,2.37,184.14,183.94,3.0]
[1755485980222,2.37,184.06,183.94,3.0]
[1755485980615,9.44571026,184.11,183.96,3.0]
[1755485980616,2.37,184.01,183.96,3.0]
[1755485980829,2.37,184.04,183.95,3.0]
[1755485981023,2.37,184.02,183.95,3.0]
[1755485981230,5.4323,183.97,183.96,3.0]
[1755485981434,2.37,183.99,183.97,3.0]
[1755485981627,2.37,183.99,183.85,151.2]
[1755485981628,5.4317,184.0,183.96,5.4326]
[1755485981825,2.37,184.03,183.97,3.0]
[1755485982226,2.37,184.03,183.87,9.44571026]
[1755485982421,2.37,184.06,183.98,3.0]
[1755485982632,3.97078198,184.05,183.98,3.0]
[1755485982834,5.4305,184.04,184.0,5.4312]
[1755485983235,151.18,184.11,183.91,9.44571026]
[1755485983236,2.37,184.07,183.91,9.44571026]
[1755485983439,2.37,184.09,183.95,9.44571026]
[1755485983740,2.37,184.09,183.96,3.0]
[1755485983943,5.95437764,184.16,183.96,3.0]
[1755485984136,2.37,184.11,183.96,3.0]
[1755485984336,3.97447711,184.1,183.96,3.0]
[1755485984541,3.9763977,184.09,183.96,3.0]
[1755485984741,2.37,184.11,183.96,3.0]
[1755485985040,9.4044114,184.1,184.06,3.0]
[1755485985243,5.4285,184.1,184.06,3.0]
[1755485985842,7.7983,184.11,184.07,3.0]
[1755485986039,2.37,184.14,184.08,3.0]
[1755485986338,2.37,184.12,184.07,5.4292]
[1755485986543,2.37,184.12,184.09,3.0]
[1755485986841,7.7982,184.11,184.09,3.0]
[1755485987240,2.37,184.09,184.07,3.0]
[1755485987437,5.95437764,184.17,184.08,3.0]
[1755485987637,5.429,184.09,184.08,3.0]
[1755485988039,5.95437764,184.17,183.96,150.96]
[1755485988243,5.32946577,184.16,183.97,3.0]
[1755485988446,2.37,184.14,183.97,3.0]
[1755485988634,2.37,184.12,183.97,3.0]
[1755485988841,2.37,184.1,183.97,3.0]
[1755485989040,3.97199278,184.11,183.96,160.40571026]
[1755485989041,5.4296,184.07,184.03,3.0]
[1755485989243,7.7996,184.07,184.03,3.0]
[1755485989746,5.4296,184.07,184.03,3.0]
[1755485989942,9.44571026,184.17,184.02,5.4307]
[1755485989943,5.4297,184.06,184.02,5.4307]
[1755485990143,5.4297,184.06,184.04,3.0]
[1755485990449,5.4297,184.06,184.05,3.0]
[1755485990646,5.4294,184.07,184.05,3.0]
[1755485990947,2.37,184.1,184.07,3.0]
[1755485991149,6.34198722,184.09,184.07,3.0]
[1755485991349,5.4292,184.08,184.07,3.0]
[1755485992144,5.4296,184.07,184.05,2.97]
[1755485992347,5.4296,184.07,184.06,2.97]
[1755485993846,5.4292,184.08,183.96,160.40571026]
[1755485994054,5.4292,184.08,184.07,2.97]
[1755485994442,5.4295,184.07,184.03,5.4305]
[1755485994646,5.4295,184.07,184.04,2.97]
[1755485996652,22.25437764,184.16,184.03,2.97]
[1755485996854,2.36,184.08,183.91,2.97]
[1755485997052,2.36,184.04,183.91,2.97]
[1755485997249,2.36,184.02,183.91,2.97]
[1755485997559,2.36,184.0,183.91,2.97]
[1755485997759,2.36,183.98,183.91,2.97]
[1755485998154,5.4329,183.96,183.93,2.97]
[1755485998552,2.36,183.98,183.93,2.97]
[1755485998757,5.4324,183.97,183.93,2.97]
[1755485999654,5.4327,183.96,183.94,2.97]
[1755486000057,2.36,183.98,183.95,2.97]
[1755486000257,2.36,183.96,183.82,2.97]
[1755486000651,5.4336,183.93,183.82,2.97]
[1755486000855,5.4336,183.93,183.81,365.0]
[1755486000856,2.36,183.94,183.88,2.97]
[1755486001753,4.07710374,183.93,183.81,365.0]
[1755486001958,2.36,184.0,183.82,2.97]
[1755486002261,6.43434284,183.99,183.84,2.97]
[1755486002457,6.43434284,183.98,183.84,2.97]
[1755486002655,2.36,183.98,183.84,2.97]
[1755486003051,15.4000879,184.05,183.83,9.44571026]
[1755486003362,2.36,183.99,183.85,2.97]
[1755486003858,2.36,184.05,183.88,9.44571026]
[1755486004064,5.4307,184.03,183.98,5.4319]
[1755486004253,2.36,184.05,183.92,9.44571026]
[1755486004459,2.36,184.08,183.99,2.97]
[1755486004651,2.36,184.11,184.06,2.97]
[1755486004856,2.36,184.11,183.97,2.97]
[1755486005056,4.07620189,184.1,183.97,2.97]
[1755486005255,4.07620189,184.09,184.06,2.97]
[1755486005565,4.07620189,184.09,183.96,9.44571026]
[1755486005566,2.36,184.13,183.97,2.97]
[1755486005770,4.07702407,184.12,184.01,2.97]
[1755486005971,4.07702407,184.11,184.01,150.34]
[1755486006170,2.36,184.16,184.13,2.97]
[1755486006466,12.57459727,184.27,184.14,2.97]
[1755486006467,2.36,184.21,184.14,2.97]
[1755486006766,5.4241,184.25,184.19,5.4258]
[1755486007064,2.36,184.27,184.22,2.97]
[1755486007266,4.0169857,184.26,184.22,2.97]
[1755486007459,5.95437764,184.32,184.23,2.97]
[1755486007460,4.0169857,184.25,184.23,2.97]
[1755486007660,4.01537728,184.24,184.2,2.97]
[1755486007962,2.36,184.22,184.16,2.97]
[1755486008360,2.36,184.2,184.16,2.97]
[1755486008569,4.01076897,184.19,184.1,2.97]
[1755486008862,2.36,184.14,184.11,2.97]
[1755486009056,2.36,184.13,184.01,150.22]
[1755486009266,5.4279,184.12,184.1,2.97]
[1755486009965,2.36,184.13,184.1,2.97]
[1755486010367,5.95437764,184.22,184.05,5.4297]
[1755486010562,5.95437764,184.22,184.06,2.97]
[1755486010563,2.36,184.12,184.06,2.97]
[1755486010963,15.4000879,184.19,183.97,365.08]
[1755486011168,2.36,184.17,184.01,2.97]
[1755486011368,4.00902754,184.16,184.01,2.97]
[1755486011563,6.36902754,184.16,184.01,2.97]
[1755486011762,2.36,184.14,184.06,2.97]
[1755486012367,2.36,184.14,184.0,9.44571026]
[1755486012368,2.36,184.14,184.07,2.97]
[1755486012867,2.36,184.1,184.04,2.97]
[1755486013266,5.43,184.05,184.04,2.97]
[1755486013469,2.36,184.07,183.99,2.97]
[1755486014771,5.4309,184.02,184.0,2.97]
[1755486015065,15.4000879,184.15,183.95,5.4328]
[1755486015271,15.4000879,184.15,183.86,364.9]
[1755486015272,5.95437764,184.12,183.96,2.97]
[1755486015469,2.36,184.1,183.96,2.97]
[1755486015666,2.36,184.08,183.96,2.97]
[1755486015867,2.36,184.16,183.98,2.97]
[1755486016064,2.36,184.16,183.91,149.96]
[1755486016065,6.37356359,184.15,184.02,2.97]
[1755486016268,5.4282,184.11,184.06,5.4294]
[1755486016470,2.36,184.21,184.0,2.97]
[1755486016672,2.36,184.19,184.0,2.97]
[1755486016873,2.36,184.17,184.05,2.97]
[1755486017066,4.0139244,184.16,184.05,2.97]
[1755486017274,2.36,184.14,184.05,2.97]
[1755486017474,4.01206694,184.13,184.05,2.97]
[1755486017770,16.3,184.21,184.05,2.97]
[1755486017771,2.36,184.11,184.05,2.97]
[1755486017975,5.4293,184.08,184.05,2.97]
[1755486018162,5.95437764,184.19,184.05,2.97]
[1755486018369,20.35150791,184.35,183.94,15.44002787]
[1755486018370,2.36,184.06,184.03,2.97]
[1755486018673,5.43,184.05,184.03,2.97]
[1755486019172,5.43,184.05,184.0,5.4313]
[1755486019173,5.95437764,184.17,184.01,2.97]
[1755486019372,4.01066267,184.16,184.01,2.97]
[1755486019574,5.4288,184.1,184.01,2.97]
[1755486019775,5.4288,184.1,184.04,5.43]
[1755486020071,2.36,184.17,184.01,2.97]
[1755486020265,2.36,184.17,184.01,8.4011]
[1755486020266,4.01097587,184.16,184.01,8.4011]
[1755486020467,2.36,184.14,184.01,2.97]
[1755486020664,5.4309,184.02,183.88,149.78]
[1755486020871,2.36,184.03,183.88,149.78]
[1755486021070,5.43,184.05,183.89,2.97]
[1755486021270,2.36,184.08,183.91,2.97]
[1755486021776,2.36,184.07,183.91,2.97]
[1755486021972,2.36,184.07,183.9,15.44002787]
[1755486021973,2.36,184.07,184.0,2.97]
[1755486022270,5.4304,184.04,184.0,2.97]
[1755486022479,2.37,184.03,184.0,2.97]
[1755486022669,2.37,184.03,184.01,3.1]
[1755486023071,5.4308,184.02,183.91,3.1]
[1755486023667,5.4308,184.02,183.96,5.4324]
[1755486023977,5.4308,184.02,183.97,3.1]
[1755486024382,5.4308,184.02,183.91,3.1]
[1755486024873,5.4308,184.02,183.96,5.4324]
[1755486025077,7.8008,184.02,183.98,3.1]
[1755486025283,7.8008,184.02,184.0,3.1]
[1755486025575,5.4306,184.03,183.91,3.1]
[1755486025976,2.37,184.04,183.91,3.1]
[1755486026180,2.37,184.13,184.01,3.1]
[1755486026371,2.37,184.11,184.01,3.1]
[1755486026570,2.37,184.09,184.01,3.1]
[1755486027477,5.4302,184.05,184.01,3.1]
[1755486027676,8.32437764,184.14,183.99,3.1]
[1755486027882,2.37,184.12,183.99,3.1]
[1755486028082,11.32812244,184.13,183.9,149.76]
[1755486028083,5.4312,184.01,183.91,3.1]
[1755486028379,2.37,184.02,183.91,3.1]
[1755486028580,2.37,184.04,183.91,3.1]
[1755486028984,2.37,184.13,183.91,3.1]
[1755486029287,2.37,184.11,183.97,3.1]
[1755486029582,4.01418871,184.1,183.97,3.1]
[1755486029771,5.4311,184.02,183.97,8.5323]
[1755486029971,7.8011,184.02,183.98,3.1]
[1755486030178,7.8011,184.02,183.9,149.76]
[1755486030471,2.37,184.04,183.91,3.1]
[1755486031083,5.4311,184.02,183.91,3.1]
[1755486031485,2.37,184.04,183.91,3.1]
[1755486031783,5.4312,184.01,183.92,3.1]
[1755486032581,2.37,184.06,183.92,3.1]
[1755486033178,5.43,184.05,183.92,3.1]
[1755486033587,2.37,184.06,184.02,3.1]
[1755486033779,5.95437764,184.16,184.02,3.1]
[1755486033780,2.37,184.09,184.02,3.1]
[1755486034184,5.4292,184.08,184.03,5.4305]
[1755486034384,7.7992,184.08,184.04,3.1]
[1755486034583,2.37,184.08,183.91,15.44002787]
[1755486034783,2.37,184.08,183.92,3.1]
[1755486035482,2.37,184.11,183.95,3.1]
[1755486035880,5.4297,184.06,183.95,3.1]
[1755486036186,2.37,184.06,183.95,3.1]
[1755486036381,16.3,184.14,183.98,3.1]
[1755486036382,2.37,184.02,183.98,3.1]